[Event "Fall IM-E Norm Invitational 2022"]
[Site "Charlotte"]
[Date "2022.11.20"]
[Round "6"]
[White "Grayson Rorrer"]
[Black "Alperen Kanli"]
[Result "1/2-1/2"]
[ECO "B19"]
[WhiteElo "2230"]
[BlackElo "2171"]
[Annotator "TA"]
[PlyCount "127"]
[EventDate "2022.11.18"]
[EventType "tourn"]
[EventCountry "USA"]
[SourceTitle "playchess.com"]
[Source "ChessBase"]
[SourceQuality "1"]
[TimeControl "5400+30"]

{[%evp 31,127,31,24,20,40,6,25,4,46,13,38,45,76,54,68,59,48,35,37,41,46,46,74,75,68,74,85,12,93,91,103,86,86,15,18,13,18,16,16,16,15,18,57,0,0,0,0,0,0,0,0,0,0,0,0,0,0,0,0,0,0,0,0,0,0,0,0,0,0,0,0,0,0,0,0,0,0,0,0,0,0,0,0,0,0,0,0,0,0,0,0,0,0,0,0,0,0,0]} 1. e4 {[%emt 0:00:02]} c6 {[%emt 0:00:04]} 2. d4 {[%emt 0:00:05]} d5 {[%emt 0:00:05]} 3. Nd2 {[%emt 0:00:11]} dxe4 {[%emt 0:00:01]} 4. Nxe4 {[%emt 0:00:09]} Bf5 {[%emt 0:00:05]} 5. Ng3 {[%emt 0:00:05]} Bg6 {[%emt 0:00:05]} 6. h4 {[%emt 0:00:06]} h6 {[%emt 0:00:05]} 7. Nf3 {[%emt 0:00:05]} Nd7 {[%emt 0:00:07]} 8. h5 {[%emt 0:00:03]} Bh7 {[%emt 0:00:05]} 9. Bd3 {[%emt 0:00:04]} Bxd3 {[%emt 0:00:06]} 10. Qxd3 {[%emt 0:00:05]} Ngf6 {[%emt 0:00:14]} 11. Bd2 {[%emt 0:00:10]} e6 {[%emt 0:00:08]} 12. O-O-O {[%emt 0:00:10]} Qc7 {[%emt 0:00:08]} 13. Kb1 {[%emt 0:00:12]} O-O-O {[%emt 0:00:44]} 14. Qe2 {[%emt 0:00:06]} Bd6 {[%emt 0:00:28]} 15. Ne4 {[%emt 0:00:10]} Nxe4 {[%emt 0:00:04]} 16. Qxe4 {[%emt 0:00:05]} Nf6 {[%emt 0:00:05]} 17. Qe2 {[%emt 0:00:06] B19: Classical Caro-Kann: 4...Bf5 main line.} Rhe8 {[%emt 0:07:56]} 18. Ne5 {[%emt 0:00:36]} c5 {[%emt 0:02:17]} 19. Bc1 {[%emt 0:00:15] [#] White has an edge.} Kb8 $146 {[%emt 0:07:22]} ({Predecessor:} 19... Bxe5 20. dxe5 Nd5 21. Rh3 Ne7 22. Rhd3 Rxd3 23. Rxd3 Rd8 24. Rxd8+ Kxd8 25. f4 Ke8 26. g4 Qd7 27. Qe4 Qd5 28. Qh7 Kf8 29. a4 Ng8 {½-½ (29) Skalicky,F (2173)-Lautenbach,W (2260) ICCF email 2011}) 20. Nc4 {[%emt 0:07:38]} cxd4 {[%emt 0:12:54]} (20... Bf8 $5 {[%cal Rc5d4]}) 21. Rxd4 {[%emt 0:00:17] Strongly threatening Nxd6.} e5 {[%emt 0:00:12]} 22. Rxd6 {[%emt 0:04:28]} (22. Rd2 $5 {[%cal Rh1d1]}) 22... Rxd6 {[%emt 0:00:01]} 23. Nxd6 {[%emt 0:00:10]} Qxd6 {[%emt 0:00:04]} 24. g4 {[%emt 0:00:59]} (24. Rd1 $5 {[%cal Rd1d6]} Qc6 25. Rd3 $11) 24... Qc6 {[%emt 0:08:49]} 25. Rg1 {[%emt 0:03:15]} Qe4 {[%emt 0:07:55] Prevents g5.} 26. Be3 {[%emt 0:00:42]} Rd8 {[%emt 0:06:27]} 27. a3 $1 {[%emt 0:15:32]} b6 {[%emt 0:07:02]} 28. g5 {[%emt 0:08:44]} hxg5 {[%emt 0:10:30]} 29. Rxg5 {[%emt 0:00:34]} (29. f3 $1 $16 {[%cal Rf3e4]} Qd5 30. Bxg5) 29... Qh1+ {[%emt 0:01:25] [#]} (29... Ne8 $1 $11) 30. Ka2 $1 $16 {[%emt 0:01:17]} ({Don't blunder} 30. Bc1 $2 Ne4 31. h6 Nd2+ $19) 30... Qd5+ {[%emt 0:00:02]} 31. c4 {[%emt 0:03:03]} Qe6 {[%emt 0:00:11] [#]} 32. Bc1 {[%emt 0:00:26]} ({Much weaker is} 32. Rxg7 Nxh5 33. Rg4 (33. Qxh5 Qxc4+ 34. Kb1 Qd3+ 35. Ka2 Qc4+ 36. Kb1 Qd3+ 37. Ka2 Qc4+ $11) 33... Nf6 $11) ({Better is} 32. f4 $1 $16) 32... Rd4 $11 {[%emt 0:02:08]} 33. Rxe5 {[%emt 0:01:59]} Qxc4+ {[%emt 0:00:10]} 34. Qxc4 {[%emt 0:00:05]} Rxc4 {[%emt 0:00:05][%mdl 4096] Endgame KRB-KRN} 35. Be3 {[%emt 0:00:07]} Kc8 {[%emt 0:07:28]} 36. Kb3 {[%emt 0:09:55]} Re4 {[%emt 0:05:46]} 37. Rg5 {[%emt 0:16:43]} ({White should play} 37. Rxe4 $14 Nxe4 38. Bd4) 37... Ne8 $1 {[%emt 0:02:01] The position is equal.} 38. a4 {[%emt 0:00:10]} f6 {[%emt 0:00:43]} 39. Rg6 {[%emt 0:00:17]} Rh4 {[%emt 0:01:53]} 40. h6 {[%emt 0:00:33]} gxh6 {[%emt 0:00:02]} 41. Rg8 {[%emt 0:03:31]} Kd7 {[%emt 0:00:43]} 42. Rh8 {[%emt 0:00:02]} Nc7 {[%emt 0:03:12]} 43. Rh7+ {[%emt 0:02:37]} Kc6 {[%emt 0:00:29]} 44. Rxh6 {[%emt 0:00:06]} Rxh6 {[%emt 0:00:32]} 45. Bxh6 {[%emt 0:00:05] KB-KN} Kd5 {[%emt 0:00:12]} 46. Bf4 {[%emt 0:00:19]} Ne6 {[%emt 0:00:44]} 47. Be3 {[%emt 0:00:55]} f5 {[%emt 0:03:28]} 48. a5 {[%emt 0:01:01][%cal Ba4a5,Ba5b6][%mdl 32]} f4 {[%emt 0:02:18]} 49. axb6 {[%emt 0:01:03]} fxe3 {[%emt 0:00:05]} 50. bxa7 {[%emt 0:00:05] KN-K3P} Nc7 {[%emt 0:00:04]} 51. fxe3 {[%emt 0:00:07]} Kc5 {[%emt 0:00:08]} 52. e4 {[%emt 0:01:15]} Kb6 {[%emt 0:00:37]} 53. Kc4 {[%emt 0:00:12]} Kxa7 {[%emt 0:00:06] KN-KPP} 54. Kc5 {[%emt 0:00:07]} Kb7 {[%emt 0:00:15]} 55. e5 {[%emt 0:00:40]} Ne6+ {[%emt 0:00:37]} 56. Kd5 {[%emt 0:01:32]} Nc7+ {[%emt 0:00:07]} 57. Kd6 {[%emt 0:00:14]} Kb6 {[%emt 0:00:03]} 58. b3 {[%emt 0:01:31]} Nb5+ {[%emt 0:00:17]} 59. Ke7 {[%emt 0:01:10]} Nd4 {[%emt 0:00:32]} 60. Kd6 {[%emt 0:01:14]} Nxb3 {[%emt 0:01:01]} 61. e6 {[%emt 0:00:11] Threatens to win with e7.} Nd4 {[%emt 0:00:05]} 62. e7 {[%emt 0:00:02]} Nf5+ {[%emt 0:00:08]} 63. Kd7 {[%emt 0:00:02]} Nxe7 {[%emt 0:00:06]} 64. Kxe7 {[%emt 0:00:04] Weighted Error Value: White=0.10 (very precise) /Black=0.08 (flawless)} 1/2-1/2

[Event "Fall IM-E Norm Invitational 2022"]
[Site "Charlotte"]
[Date "2022.11.22"]
[Round "9"]
[White "Roberto Martin Del Campo"]
[Black "Grayson Rorrer"]
[Result "0-1"]
[ECO "B94"]
[WhiteElo "2243"]
[BlackElo "2230"]
[Annotator "TA"]
[PlyCount "46"]
[EventDate "2022.11.18"]
[EventType "tourn"]
[EventCountry "USA"]
[SourceTitle "playchess.com"]
[Source "ChessBase"]
[SourceQuality "1"]
[TimeControl "5400+30"]

{[%evp 13,46,-11,21,-2,47,-12,0,0,0,0,0,0,0,0,0,-7,0,-28,-6,-29,-25,-49,0,-105,-105,-860,-853,-818,-794,-981,-901,-888,-795,-1338,-1336]} 1. e4 {[%emt 0:00:29]} c5 {[%emt 0:00:12]} 2. Nf3 {[%emt 0:00:05]} d6 {[%emt 0:00:14]} 3. d4 {[%emt 0:00:12]} cxd4 {[%emt 0:00:10]} 4. Nxd4 {[%emt 0:00:07]} Nf6 {[%emt 0:00:11]} 5. Nc3 {[%emt 0:00:07]} a6 {[%emt 0:00:11]} 6. Bg5 {[%emt 0:00:48]} Nbd7 {[%emt 0:00:11]} 7. f4 {[%emt 0:00:21] 7.Qe2 is the recent fashion.} Qc7 {[%emt 0:00:10]} 8. Bd3 {[%emt 0:01:14] B94: Sicilian Najdorf: 6 Bg5 Nbd7.} b5 {[%emt 0:00:53]} (8... g6 $11) 9. Qf3 {[%emt 0:00:16]} ({White should try} 9. Qe2 $14) 9... Bb7 {[%emt 0:00:10]} 10. O-O-O {[%emt 0:00:19] The position is equal.} Qb6 {[%emt 0:00:14]} 11. Bxf6 {[%emt 0:07:44]} Nxf6 {[%emt 0:00:13]} 12. Nd5 {[%emt 0:01:04]} Nxd5 {[%emt 0:00:12]} 13. exd5 {[%emt 0:00:02][%cal Of4f5]} g6 {[%emt 0:00:08]} 14. Rhe1 {[%emt 0:00:26][%cal Of4f5]} Bg7 $1 {[%emt 0:00:19][%cal Bf8g7,Bg7d4,Bd4b2][%mdl 32] [#]} 15. Nb3 $146 {[%emt 0:02:19]} ({Predecessor:} 15. Nc6 Bxc6 16. dxc6 Rc8 17. Be4 O-O 18. Kb1 d5 19. Rxd5 Rxc6 20. Qe3 Qc7 21. Red1 Re6 22. f5 Re5 23. Rd7 Qc4 24. R7d4 Qc7 25. Rd7 Qc4 26. R7d4 {½-½ (26) Tylecek,D (2246)-Susla,V (2348) LSS email 2018}) 15... a5 {[%emt 0:08:45] [#] Hoping for ...a4.} (15... Qc7 {keeps more tension.} 16. Qe4 e6 17. f5 Be5) 16. Nd2 {[%emt 0:14:48]} O-O {[%emt 0:01:49] aiming for ...a4.} 17. Rxe7 {[%emt 0:02:40]} a4 {[%emt 0:00:56]} (17... Rfe8 $15 {is superior.} 18. Rde1 Rxe7 19. Rxe7 Kf8) 18. Qe3 {[%emt 0:02:00] [#]} (18. a3 $1 $11) 18... Bd4 $1 $17 {[%emt 0:00:30]} ({But not} 18... Qxe3 $6 19. Rxe3 Bxd5 20. Be4 $15) 19. Rxb7 $2 {[%emt 0:00:28][%mdl 8192] Now White is beyond hope.} Bxb2+ $1 $19 {[%emt 0:00:06] Black is clearly winning.} ({And not} 19... Bxe3 20. Rxb6 Bxb6 21. Bxb5 $11) 20. Kxb2 {[%emt 0:01:20]} Qxe3 {[%emt 0:00:06]} 21. Ne4 {[%emt 0:00:52]} Qxf4 {[%emt 0:00:24]} 22. c3 {[%emt 0:00:27]} f5 {[%emt 0:00:14]} 23. g3 {[%emt 0:00:30]} Qf3 {[%emt 0:00:05] Weighted Error Value: White=1.15/Black=0.18 (very precise)} 0-1

[Event "Fall IM-E Norm Invitational 2022"]
[Site "Charlotte"]
[Date "2022.11.22"]
[Round "9"]
[White "Harshid Kunka"]
[Black "Sriram Krishnakumar"]
[Result "1-0"]
[ECO "C64"]
[WhiteElo "2236"]
[BlackElo "2248"]
[Annotator "TA"]
[PlyCount "75"]
[EventDate "2022.11.18"]
[EventType "tourn"]
[EventCountry "USA"]
[SourceTitle "playchess.com"]
[Source "ChessBase"]
[SourceQuality "1"]
[TimeControl "5400+30"]

{[%evp 15,75,36,27,27,118,127,118,114,122,105,143,135,114,65,77,67,56,0,0,0,13,0,41,30,40,45,46,23,45,28,39,7,105,104,108,85,315,310,479,477,536,462,600,597,667,595,637,639,567,612,915,885,841,842,788,607,719,660,827,770,1131,521]} 1. e4 {[%emt 0:00:01]} e5 {[%emt 0:00:04]} 2. Nf3 {[%emt 0:00:15]} Nc6 {[%emt 0:00:04]} 3. Bb5 {[%emt 0:00:06]} Bc5 {[%emt 0:00:04]} 4. c3 {[%emt 0:00:22]} Nf6 {[%emt 0:01:20]} 5. O-O {[%emt 0:00:10]} O-O {[%emt 0:04:29]} 6. d4 {[%emt 0:02:38]} Bb6 {[%emt 0:00:24]} 7. Bg5 {[%emt 0:03:27]} h6 {[%emt 0:14:11]} 8. Bh4 {[%emt 0:05:07]} d6 $1 {[%emt 0:04:24]} 9. Qc1 {[%emt 0:07:30] C65: Ruy Lopez: Berlin Defence (3...Nf6), unusual lines and 4 0-0 Bc5.} Bd7 {[%emt 0:07:42]} (9... Qe7 $11 {remains equal.}) 10. dxe5 $1 $16 {[%emt 0:05:40] [#]} Nxe5 $146 {[%emt 0:10:00]} ({Predecessor:} 10... dxe5 11. Rd1 Qe7 12. Bxf6 gxf6 13. Qxh6 Bg4 14. Bxc6 bxc6 15. Nbd2 Rfd8 16. Qh4 Be6 17. Nxe5 Bxf2+ 18. Qxf2 fxe5 {1-0 (45) Sadzikowski,D (2584)-Paprocki,J (2184) Katowice 2017}) 11. Nxe5 {[%emt 0:06:04] White is better.} Bxb5 {[%emt 0:00:07] [#]} 12. Ng4 {[%emt 0:00:58] Strongly threatening Bxf6.} Nxg4 {[%emt 0:00:23]} (12... Bxf1 $2 13. Bxf6 Bd3 14. Bxd8 $18) 13. Bxd8 {[%emt 0:00:07]} Bxf1 {[%emt 0:00:03] A strong pair of Bishops.} 14. Bh4 {[%emt 0:02:29] Chess con chili.} (14. Kxf1 Raxd8 15. Na3 Nxf2 $17) (14. Bxc7 $16 Bxc7 15. Kxf1 (15. Qxf1 Bb6 $14)) 14... Bd3 $14 {[%emt 0:02:57]} 15. Qd1 {[%emt 0:05:28][%csl LRd3,LRg4]} Ne5 {[%emt 0:00:59]} 16. Bg3 {[%emt 0:01:10]} Bxe4 {[%emt 0:01:09]} 17. Nd2 {[%emt 0:00:22]} Bd5 {[%emt 0:06:24]} 18. Qc2 {[%emt 0:03:08][%mdl 1024] White has compensation.} Ng6 {[%emt 0:03:54]} 19. b4 {[%emt 0:03:51]} Be6 {[%emt 0:04:13]} 20. c4 {[%emt 0:03:01]} Bd4 {[%emt 0:00:11]} 21. Re1 {[%emt 0:01:30][%cal Oe1e6] Hoping for Rxe6!} Rae8 {[%emt 0:01:12][%cal Oe6f5]} 22. Nf3 {[%emt 0:04:43]} Bf6 {[%emt 0:02:02]} 23. h4 {[%emt 0:02:17]} Bg4 {[%emt 0:00:37]} (23... Ne7 $11) 24. Rxe8 $16 {[%emt 0:01:10]} Rxe8 {[%emt 0:00:04] [#]} 25. Qa4 $1 {[%emt 0:00:50][%csl LRa7,LRe8]} Re2 {[%emt 0:07:49] Loses the game.} (25... Ra8 $16 {keeps fighting.}) 26. Qxa7 $18 {[%emt 0:01:41]} Bxf3 {[%emt 0:01:01]} (26... Rc2 {was called for.} 27. Qb8+ Kh7 28. Qxc7 b5 29. Qxd6 (29. Qxf7 bxc4 30. Qd5 c3 $18) (29. Bxd6 Bxf3 30. gxf3 Nxh4 $18) 29... bxc4) 27. gxf3 {[%emt 0:00:06] White is clearly winning.} Nxh4 {[%emt 0:00:09]} 28. Qxb7 {[%emt 0:03:35]} Rxa2 {[%emt 0:03:40]} 29. Qxc7 {[%emt 0:05:35]} Ra1+ {[%emt 0:00:35]} 30. Kh2 {[%emt 0:00:05]} Nxf3+ {[%emt 0:00:03]} 31. Kg2 {[%emt 0:00:09]} Ne1+ {[%emt 0:01:56]} 32. Kh3 {[%emt 0:00:21]} h5 {[%emt 0:04:02]} 33. Qc8+ {[%emt 0:02:47]} Kh7 {[%emt 0:00:13]} 34. Qf5+ {[%emt 0:00:19]} Kg8 {[%emt 0:00:47]} 35. Qxh5 {[%emt 0:01:12]} Nc2 {[%emt 0:02:37] And now ...Rh1+ would win.} 36. Qb5 {[%emt 0:00:36] Threatens to win with Qe8+.} Rh1+ {[%emt 0:03:45]} 37. Kg2 {[%emt 0:00:14]} Rb1 {[%emt 0:00:04]} 38. Qe8+ {[%emt 0:00:09] Weighted Error Value: White=0.21 (precise) /Black=0.52} 1-0

[Event "Fall IM-E Norm Invitational 2022"]
[Site "Charlotte"]
[Date "2022.11.22"]
[Round "9"]
[White "Alperen Kanli"]
[Black "Sila Caglar"]
[Result "1/2-1/2"]
[ECO "D35"]
[WhiteElo "2171"]
[BlackElo "2268"]
[Annotator "TA"]
[PlyCount "37"]
[EventDate "2022.11.18"]
[EventType "tourn"]
[EventCountry "USA"]
[SourceTitle "playchess.com"]
[Source "ChessBase"]
[SourceQuality "1"]
[TimeControl "5400+30"]

{[%evp 16,18,29,15,31]} 1. d4 {[%emt 0:00:02]} d5 {[%emt 0:00:02]} 2. c4 {[%emt 0:00:04]} e6 {[%emt 0:00:03]} 3. Nc3 {[%emt 0:00:04]} Nf6 {[%emt 0:00:02]} 4. cxd5 {[%emt 0:00:04]} exd5 {[%emt 0:00:04]} 5. Bg5 {[%emt 0:00:04]} Be7 {[%emt 0:00:05]} 6. e3 {[%emt 0:00:04]} c6 {[%emt 0:00:04]} 7. Bd3 {[%emt 0:00:04]} h6 {[%emt 0:00:04]} 8. Bh4 {[%emt 0:00:04]} Nbd7 {[%emt 0:00:04]} 9. Qc2 {[%emt 0:00:04]} O-O {[%emt 0:00:10] [#] A rather calm draw. D36: Queen's Gambit Declined: Exchange Variation: Main line (5 Bg5 c6 6 Qc2).} {Predecessor:} 10. Nge2 $146 Re8 11. f3 b5 12. O-O Bb7 13. Bf2 a6 14. Bf5 c5 15. dxc5 Bxc5 16. Nd4 Bd6 17. Nce2 Ne5 18. b3 g6 19. Bh3 {½-½ (60) Wojtaszek,R (2691)-Lupulescu,C (2645) Legnica 2021} 1/2-1/2

[Event "Fall IM-E Norm Invitational 2022"]
[Site "Charlotte"]
[Date "2022.11.22"]
[Round "9"]
[White "Liam Putnam"]
[Black "Dante Beukes"]
[Result "1-0"]
[ECO "E92"]
[WhiteElo "2161"]
[BlackElo "2299"]
[Annotator "TA"]
[PlyCount "65"]
[EventDate "2022.11.18"]
[EventType "tourn"]
[EventCountry "USA"]
[SourceTitle "playchess.com"]
[Source "ChessBase"]
[SourceQuality "1"]
[TimeControl "5400+30"]

{[%evp 20,65,66,39,37,37,36,16,35,3,14,7,28,31,22,20,34,32,36,34,60,68,75,83,93,77,105,110,151,86,165,163,218,194,234,219,229,218,281,279,256,290,282,273,446,430,762,749]} 1. d4 {[%emt 0:00:04]} Nf6 {[%emt 0:02:24]} 2. c4 {[%emt 0:00:07]} d6 {[%emt 0:00:03]} 3. Nf3 {[%emt 0:05:31]} g6 {[%emt 0:00:28]} 4. Nc3 {[%emt 0:00:27]} Bg7 {[%emt 0:00:05]} 5. e4 {[%emt 0:00:12]} O-O {[%emt 0:00:06]} 6. Be2 {[%emt 0:00:15]} e5 {[%emt 0:00:06]} 7. Be3 {[%emt 0:00:08]} Ng4 {[%emt 0:04:06]} 8. Bg5 {[%emt 0:00:09]} f6 {[%emt 0:00:04]} 9. Bc1 {[%emt 0:00:20]} Nc6 {[%emt 0:02:29] 9...exd4 is not played anymore.} 10. O-O $1 {[%emt 0:00:52][%mdl 4] is more profitable than 10.d5 at the moment.} Nh6 {[%emt 0:13:35]} 11. dxe5 {[%emt 0:01:20]} (11. d5 $5 {[%cal Rd5c6]} Ne7 12. Bd2 $14) 11... fxe5 {[%emt 0:02:53] E97: King's Indian: Classical Main Line (6...e5 7 0-0 Nc6): 8 Be3 and 8 d5 Ne7, not 9 Ne1.} 12. Bg5 {[%emt 0:01:49]} Qd7 {[%emt 0:01:47]} 13. Nd5 {[%emt 0:05:31][%cal Oc4c5]} Kh8 {[%emt 0:01:16] The position is equal.} 14. Qd2 {[%emt 0:02:34] [#]} Nf7 $146 {[%emt 0:01:15]} ({Predecessor:} 14... Ng8 15. h3 Nce7 16. Nxe7 Nxe7 17. Rad1 Nc6 18. c5 Bf6 19. cxd6 cxd6 20. Qxd6 Qxd6 21. Rxd6 Bxg5 22. Nxg5 {1-0 (36) Koridze,L (2001)-Santos,R (2170) Chess.com INT 2021}) 15. Be3 {[%emt 0:02:08]} Ncd8 {[%emt 0:04:15][%cal Bc6d8,Bd8e6,Be6d4,Bd4e2][%mdl 32]} 16. Rfd1 {[%emt 0:18:57]} Ne6 {[%emt 0:02:25] Against c5} 17. Rac1 {[%emt 0:01:57]} c6 {[%emt 0:00:59]} 18. Nc3 {[%emt 0:00:12][%cal Bd5c3,Bc3e2,Be2g3][%mdl 32]} Qe7 {[%emt 0:01:27]} 19. b4 {[%emt 0:00:16]} g5 {[%emt 0:02:36]} 20. Ne1 {[%emt 0:11:43]} Nd4 {[%emt 0:06:51]} 21. Nc2 {[%emt 0:01:52]} a5 {[%emt 0:01:31]} 22. bxa5 {[%emt 0:02:26]} ({Avoid the trap} 22. Bxd4 $2 exd4 23. Na4 (23. Nxd4 $2 axb4 24. Nb1 Qxe4 $19) 23... axb4 $19) 22... Nxe2+ {[%emt 0:01:19]} 23. Nxe2 {[%emt 0:00:08]} Be6 {[%emt 0:01:04]} 24. Qc3 {[%emt 0:03:14]} (24. Nb4 $142) 24... Nh6 {[%emt 0:03:59]} (24... c5 $16) 25. Ng3 $18 {[%emt 0:02:53]} Ng4 {[%emt 0:03:07]} (25... Rfc8 {is a better defense.} 26. Rb1 Nf7) 26. h3 {[%emt 0:00:37]} Nxe3 {[%emt 0:03:19]} 27. Nxe3 {[%emt 0:00:10][%cal Bc2e3,Be3f5,Bf5d6][%mdl 32]} Qc7 {[%emt 0:00:11]} 28. Rb1 {[%emt 0:03:36]} Rxa5 {[%emt 0:12:18] [#]} 29. Rxb7 $3 {[%emt 0:04:41][%mdl 512]} Qxb7 {[%emt 0:00:13]} 30. Qxa5 {[%emt 0:00:02]} Ra8 {[%emt 0:05:41]} 31. Qd2 {[%emt 0:00:29]} Rd8 {[%emt 0:05:05]} (31... Bf8 32. Ngf5 Qa7 33. Nxd6 Qxa2) 32. Nef5 {[%emt 0:00:26]} h6 {[%emt 0:00:23]} (32... Bf6 $142 33. Nxd6 Qc7) 33. Nxd6 {[%emt 0:00:11] Weighted Error Value: White=0.08 (flawless) /Black=0.34} 1-0